bitfinex/quotes_BTCUSD_20250618
["timestamp","ask_amount","ask_price","bid_price","bid_amount"]
[1750227745328,0.77301559,105530.0,105520.0,0.00347474]
[1750227745778,0.77301559,105530.0,105520.0,0.03005037]
[1750227747152,0.77301559,105530.0,105520.0,0.03005054]
[1750227749788,0.77301559,105530.0,105520.0,0.01233334]
[1750227750206,0.80291559,105530.0,105520.0,0.01233334]
[1750227751034,0.80291559,105530.0,105520.0,0.01233794]
[1750227753031,0.83130169,105530.0,105520.0,0.01233794]
[1750227753283,0.80291559,105530.0,105520.0,0.00285271]
[1750227753715,0.5390143,105520.0,105510.0,0.27011015]
[1750227753928,0.56164236,105520.0,105510.0,0.07112525]
[1750227754402,0.59011736,105520.0,105510.0,0.07112525]
[1750227754850,0.59011736,105520.0,105510.0,0.07312525]
[1750227755111,0.59011736,105520.0,105510.0,0.07712525]
[1750227755529,0.59011736,105520.0,105510.0,0.06764748]
[1750227756368,0.61824449,105520.0,105510.0,0.06764748]
[1750227756826,0.54854994,105490.0,105480.0,0.2198094]
[1750227757176,0.54854994,105490.0,105480.0,0.2387698]
[1750227757270,0.54854994,105490.0,105480.0,0.2708698]
[1750227757493,4.76055994,105490.0,105480.0,0.30086978]
[1750227757725,4.76055994,105490.0,105480.0,0.3293102]
[1750227758461,4.76155994,105490.0,105480.0,0.3293102]
[1750227758903,4.79439049,105490.0,105480.0,0.31983018]
[1750227759331,4.79439049,105490.0,105480.0,0.3293102]
[1750227759736,4.79439049,105490.0,105480.0,0.2898302]
[1750227759955,4.79439049,105490.0,105480.0,0.4832302]
[1750227760154,4.79439049,105490.0,105480.0,0.46427007]
[1750227760368,4.79439049,105490.0,105480.0,0.47375027]
[1750227761123,4.78491137,105490.0,105480.0,0.47375027]
[1750227761976,4.78491137,105490.0,105480.0,0.48323038]
[1750227763004,4.78491137,105490.0,105480.0,0.4927104]
[1750227763532,4.58584055,105490.0,105480.0,0.60349247]
[1750227763751,4.55735855,105490.0,105480.0,0.85349247]
[1750227763969,4.55735855,105490.0,105480.0,0.66009247]
[1750227764210,0.001,105490.0,105480.0,0.85357247]
[1750227765350,4.5997802,105510.0,105500.0,0.29274878]
[1750227765569,4.5997802,105510.0,105500.0,0.48622878]
[1750227766210,4.63244366,105510.0,105500.0,0.48622878]
[1750227766417,4.64192107,105510.0,105500.0,0.49570709]
[1750227766647,4.64392107,105510.0,105500.0,0.49570709]
[1750227767630,4.6563983,105510.0,105500.0,0.49670709]
[1750227768488,4.66587544,105510.0,105500.0,0.49670709]
[1750227769512,4.67535303,105510.0,105500.0,0.49670709]
[1750227769752,4.66587544,105510.0,105500.0,0.49670709]
[1750227773371,4.67535294,105510.0,105500.0,0.49670709]
[1750227774359,4.66587544,105510.0,105500.0,0.49670709]
[1750227775635,4.66587544,105510.0,105500.0,0.78780709]
[1750227776059,4.65639803,105510.0,105500.0,0.78780709]
[1750227776272,4.66587544,105510.0,105500.0,0.78780709]
[1750227777831,4.67535303,105510.0,105500.0,0.78780709]
[1750227778264,4.66587544,105510.0,105500.0,0.78780709]
[1750227780583,4.67535303,105510.0,105500.0,0.78780709]
[1750227781443,4.67535303,105510.0,105500.0,0.77832923]
[1750227781880,4.66587544,105510.0,105500.0,0.77832923]
[1750227782096,4.65639803,105510.0,105500.0,0.77832923]
[1750227782312,4.58962324,105510.0,105500.0,0.77832923]
[1750227784865,4.58962315,105510.0,105500.0,0.77832923]
[1750227787850,4.59910056,105510.0,105500.0,0.77832923]
[1750227788256,4.58962315,105510.0,105500.0,0.77832923]
[1750227791339,4.5706686,105510.0,105500.0,0.77832923]
[1750227791777,4.56119146,105510.0,105500.0,0.87457099]
[1750227793234,4.56119146,105510.0,105500.0,0.58347099]
[1750227793650,4.58389878,105510.0,105500.0,0.58347099]
[1750227795696,4.56119146,105510.0,105500.0,0.58347099]
[1750227797303,0.37766346,105510.0,105500.0,1.12457099]
[1750227797526,0.03766346,105510.0,105500.0,1.12457099]
[1750227805519,0.03266346,105510.0,105500.0,1.12357099]
[1750227805731,0.46504618,105520.0,105510.0,0.29152857]
[1750227805940,0.46504618,105520.0,105510.0,0.67887033]
[1750227806320,0.31290182,105520.0,105510.0,0.67887033]
[1750227808618,0.31490182,105520.0,105510.0,0.67887033]
[1750227808765,0.31890182,105520.0,105510.0,0.67987033]
[1750227808963,0.0822522,105520.0,105510.0,0.67987033]
[1750227809377,0.11043285,105520.0,105510.0,0.67987033]
[1750227810976,0.13820909,105520.0,105510.0,0.67987033]
[1750227817105,0.06195689,105520.0,105510.0,0.67987033]
[1750227820719,0.03418065,105520.0,105510.0,0.67987033]
[1750227820940,0.03418065,105520.0,105510.0,0.71939033]
[1750227838599,0.37418065,105520.0,105510.0,0.87311033]
[1750227847802,0.37418065,105520.0,105510.0,0.62087033]
[1750227848022,5.8107922,105520.0,105510.0,0.5100879]
[1750227848228,5.8107922,105520.0,105510.0,0.7033679]
[1750227848503,5.62125468,105520.0,105510.0,0.71284504]
[1750227849352,5.51657286,105520.0,105510.0,0.71284504]
[1750227849563,5.50333313,105520.0,105510.0,0.71284504]
[1750227849980,5.4938568,105520.0,105510.0,0.71284504]
[1750227850194,5.51280964,105520.0,105510.0,0.71284504]
[1750227850424,5.51280955,105520.0,105510.0,0.71284504]
[1750227850638,5.50333313,105520.0,105510.0,0.71284504]
[1750227851355,5.4938568,105520.0,105510.0,0.71284504]
[1750227851560,5.4624568,105520.0,105510.0,0.71284504]
[1750227851771,5.45298065,105520.0,105510.0,0.71284504]
[1750227852009,0.03418065,105520.0,105510.0,1.13550765]
[1750227853118,0.03218065,105520.0,105510.0,1.13550765]
[1750227853333,0.02818065,105520.0,105510.0,0.84348765]
[1750227853567,0.03018065,105520.0,105510.0,0.84348765]
[1750227853782,0.002,105520.0,105510.0,0.84348765]
[1750227853994,0.002,105520.0,105510.0,0.84352765]
[1750227854983,0.03025734,105520.0,105510.0,0.84352765]
[1750227855192,0.002,105520.0,105510.0,0.84352765]
[1750227858406,0.36781664,105530.0,105520.0,0.2916079]
[1750227858630,0.36795897,105530.0,105520.0,0.38784966]
[1750227859801,0.36995897,105530.0,105520.0,0.38784966]
[1750227862562,0.00214233,105530.0,105520.0,0.38784966]
[1750227863385,0.02600363,105530.0,105520.0,0.38784966]
[1750227863599,0.00214233,105530.0,105520.0,0.38784966]
[1750227864454,0.00214233,105530.0,105520.0,0.58152966]
[1750227864863,0.03184233,105530.0,105520.0,0.4265479]
[1750227865104,0.0702175,105530.0,105520.0,0.22303166]
[1750227865313,0.09864424,105530.0,105520.0,0.41208705]
[1750227865555,0.02842899,105520.0,105510.0,0.45850968]
[1750227865769,5.19432826,105520.0,105510.0,0.65266968]
[1750227865981,5.2038045,105520.0,105510.0,0.66721053]
[1750227866392,5.21328083,105520.0,105510.0,0.66721053]
[1750227866598,5.20380441,105520.0,105510.0,0.66721053]
[1750227866809,5.20380441,105520.0,105510.0,0.66821053]
[1750227867774,5.1848522,105520.0,105510.0,0.66821053]
[1750227868201,5.19432826,105520.0,105510.0,0.66821053]
[1750227868411,5.22238101,105520.0,105510.0,0.66821053]
[1750227869048,5.21290495,105520.0,105510.0,0.66821053]
[1750227869481,5.22238101,105520.0,105510.0,0.66821053]
[1750227869898,5.21290495,105520.0,105510.0,0.66821053]
[1750227870109,5.22238101,105520.0,105510.0,0.66821053]
[1750227870545,5.21290495,105520.0,105510.0,0.66821053]
[1750227870749,5.19348101,105520.0,105510.0,0.66821053]
[1750227870955,5.18400495,105520.0,105510.0,0.66821053]
[1750227873149,5.15430495,105520.0,105510.0,0.66821053]
[1750227875212,5.15430495,105520.0,105510.0,0.47405053]
[1750227875408,5.15430495,105520.0,105510.0,0.66849053]
[1750227876920,5.16378101,105520.0,105510.0,0.66849053]
[1750227877147,5.17325725,105520.0,105510.0,0.66849053]
[1750227877390,5.15430495,105520.0,105510.0,0.66849053]
[1750227878299,5.19508119,105520.0,105510.0,0.25894754]
[1750227878535,5.24353403,105520.0,105510.0,0.42286531]
[1750227878987,5.58353403,105520.0,105510.0,0.42286531]
[1750227879897,5.57405752,105520.0,105510.0,0.42286531]
[1750227880109,5.58353403,105520.0,105510.0,0.42286531]
[1750227880939,5.57405734,105520.0,105510.0,0.42286531]
[1750227881147,5.54455734,105520.0,105510.0,0.42286531]
[1750227881560,5.55403385,105520.0,105510.0,0.42286531]
[1750227882383,5.55403376,105520.0,105510.0,0.42286531]
[1750227882598,5.34996176,105520.0,105510.0,0.42286531]
[1750227882846,5.34048534,105520.0,105510.0,0.42286531]
[1750227883378,5.34048534,105520.0,105510.0,0.22846531]
[1750227883585,5.34996176,105520.0,105510.0,0.42286531]
[1750227884876,5.35943836,105520.0,105510.0,0.42286531]
[1750227885484,5.36891505,105520.0,105510.0,0.42286531]
[1750227886833,5.35943836,105520.0,105510.0,0.42286531]
[1750227887669,5.36891505,105520.0,105510.0,0.42286531]
[1750227889317,5.36891577,105520.0,105510.0,0.42286531]
[1750227890046,5.55845329,105520.0,105510.0,0.21898817]
[1750227890284,0.01895482,105510.0,105500.0,0.51858669]
[1750227890498,4.86488273,105510.0,105500.0,0.71286669]
[1750227890715,5.22383746,105510.0,105500.0,0.42176678]
[1750227892041,5.23331514,105510.0,105500.0,0.42176678]
[1750227892672,5.23531514,105510.0,105500.0,0.42176678]
[1750227894086,5.23531577,105510.0,105500.0,0.42176678]
[1750227894724,5.23531577,105510.0,105500.0,0.21800874]
[1750227894921,5.44549403,105510.0,105500.0,0.41220874]
[1750227896049,5.43601653,105510.0,105500.0,0.41220874]
[1750227896670,5.42653894,105510.0,105500.0,0.40273052]
[1750227896888,5.41706126,105510.0,105500.0,0.40273052]
[1750227897765,5.43658349,105510.0,105500.0,0.19416]
[1750227897981,5.43658349,105510.0,105500.0,0.20363867]
[1750227898841,5.43658349,105510.0,105500.0,0.41216919]
[1750227899497,5.40758349,105510.0,105500.0,0.41216919]
[1750227901458,5.40758349,105510.0,105500.0,0.42164759]
[1750227902613,5.40758349,105510.0,105500.0,0.4311259]
[1750227902835,5.37748349,105510.0,105500.0,0.4311259]
[1750227903061,5.38696108,105510.0,105500.0,0.43112536]
[1750227903937,5.38696108,105510.0,105500.0,0.19404]
[1750227904163,5.39445852,105500.0,105490.0,0.33106]
[1750227904377,5.41488012,105500.0,105490.0,0.2911]
[1750227904589,5.41488012,105500.0,105490.0,0.48522]
[1750227904795,5.41488012,105500.0,105490.0,0.49469957]
[1750227905226,5.41488012,105500.0,105490.0,0.684291]
[1750227905467,5.41588012,105500.0,105490.0,0.530131]
[1750227905680,5.41588012,105500.0,105490.0,0.684291]
[1750227905886,5.41688012,105500.0,105490.0,0.40267048]
[1750227907698,5.41688012,105500.0,105490.0,0.20363957]
[1750227908125,5.41688012,105500.0,105490.0,0.19416]
[1750227909180,5.41688012,105500.0,105490.0,0.20363957]
[1750227909641,5.41688012,105500.0,105490.0,0.40271048]
[1750227910128,5.41688012,105500.0,105490.0,0.20363957]
[1750227911264,5.41688012,105500.0,105490.0,0.393231]
[1750227911471,5.38698012,105500.0,105490.0,0.40271048]
[1750227913427,5.38698012,105500.0,105490.0,0.199071]
[1750227913604,5.38698012,105500.0,105490.0,0.392951]
[1750227913850,5.38698012,105500.0,105490.0,0.40243048]
[1750227916096,5.37750145,105500.0,105490.0,0.19388]
[1750227918148,5.37750145,105500.0,105490.0,0.22418]
[1750227919356,5.4001537,105500.0,105490.0,0.23365957]
[1750227920000,5.4001537,105500.0,105490.0,0.423251]
[1750227920216,5.4001537,105500.0,105490.0,0.40243048]
[1750227920619,5.4001537,105500.0,105490.0,0.20339957]
[1750227921295,5.37750145,105500.0,105490.0,0.20339957]
[1750227921706,5.40015589,105500.0,105490.0,0.20339957]
[1750227924857,5.37750145,105500.0,105490.0,0.20339957]
[1750227925215,5.37750145,105500.0,105490.0,0.23199957]
[1750227925428,5.37750145,105500.0,105490.0,0.0286]
[1750227925634,5.40016222,105500.0,105490.0,0.22248]
[1750227926465,5.40016222,105500.0,105490.0,0.19388]
[1750227927534,5.40016222,105500.0,105490.0,0.22318]
[1750227928396,5.40016222,105500.0,105490.0,0.23265957]
[1750227928815,5.40016222,105500.0,105490.0,0.20335957]
[1750227932644,5.40016222,105500.0,105490.0,0.23375957]
[1750227934400,5.40016222,105500.0,105490.0,0.22428]
[1750227934616,5.40016222,105500.0,105490.0,0.22412]
[1750227937863,5.38499891,105490.0,105480.0,0.57251092]
[1750227938083,5.41713898,105490.0,105480.0,0.87171261]
[1750227938292,5.42665579,105490.0,105480.0,0.87171261]
[1750227938503,5.21436599,105490.0,105480.0,0.88119245]
[1750227939065,5.21436599,105490.0,105480.0,0.88219245]
[1750227939429,5.21436599,105490.0,105480.0,0.68971245]
[1750227939580,5.22384511,105490.0,105480.0,0.88319245]
[1750227940087,5.23332468,105490.0,105480.0,0.88319245]
[1750227941555,5.23332468,105490.0,105480.0,0.68971245]
[1750227941767,5.23332468,105490.0,105480.0,0.88319245]
[1750227943538,5.23332468,105490.0,105480.0,0.68971245]
[1750227943667,5.23332468,105490.0,105480.0,0.88319245]
[1750227944324,5.40395778,105490.0,105480.0,0.29898987]
[1750227944547,5.41717408,105490.0,105480.0,0.29898987]
[1750227944751,5.4076946,105490.0,105480.0,0.0416]
[1750227944942,5.4076946,105490.0,105480.0,0.19548]
[1750227945168,5.4076946,105490.0,105480.0,0.20437133]
[1750227945355,5.4076946,105490.0,105480.0,0.20437138]
[1750227946261,5.4076946,105490.0,105480.0,0.01089138]
[1750227946457,5.4076946,105490.0,105480.0,0.20437138]
[1750227947326,5.4076946,105490.0,105480.0,0.002]
[1750227947535,5.4076946,105490.0,105480.0,0.19552]
[1750227947758,5.4076946,105490.0,105480.0,0.19352]
[1750227947968,5.50839878,105490.0,105480.0,0.0301139]
[1750227948174,5.53889878,105490.0,105480.0,0.1840339]
[1750227948382,0.01896209,105470.0,105460.0,0.49131673]
[1750227948588,4.89333283,105470.0,105460.0,0.69436573]
[1750227949018,4.88385147,105470.0,105460.0,0.70890658]
[1750227949426,5.08296092,105470.0,105460.0,0.54550495]
[1750227949654,5.08296092,105470.0,105460.0,0.70142495]
[1750227949862,5.08296092,105470.0,105460.0,0.31038314]
[1750227950070,5.40545147,105470.0,105460.0,0.06814737]
[1750227950291,5.40545147,105470.0,105460.0,0.22294737]
[1750227950499,5.38503674,105470.0,105460.0,0.00204737]
[1750227950717,5.38503674,105470.0,105460.0,0.04164737]
[1750227950951,5.38503674,105470.0,105460.0,0.19456737]
[1750227951157,5.38603674,105470.0,105460.0,0.19856737]
[1750227951364,5.38703674,105470.0,105460.0,0.19856737]
[1750227951581,5.38603674,105470.0,105460.0,0.19456737]
[1750227951988,5.38703674,105470.0,105460.0,0.19456737]
[1750227952632,5.38703674,105470.0,105460.0,0.03964737]
[1750227952852,5.38703674,105470.0,105460.0,0.19456737]
[1750227953059,5.38703674,105470.0,105460.0,0.20404963]
[1750227953273,5.38703674,105470.0,105460.0,0.04912963]
[1750227953487,5.38703674,105470.0,105460.0,0.0190118]
[1750227953696,5.38703674,105470.0,105460.0,0.2134918]
[1750227953901,5.38703674,105470.0,105460.0,0.44181906]
[1750227954118,5.38703674,105470.0,105460.0,0.46203716]
[1750227954320,5.38703674,105470.0,105460.0,0.47151915]
[1750227955181,5.38703674,105470.0,105460.0,0.31663915]
[1750227955392,5.50815228,105470.0,105460.0,4.737e-05]
[1750227955594,5.50815228,105470.0,105460.0,0.19488737]
[1750227955816,5.23811774,105470.0,105460.0,0.19488737]
[1750227956025,5.20831774,105470.0,105460.0,0.19488737]
[1750227956452,5.20831774,105470.0,105460.0,0.20436963]
[1750227957180,5.20831774,105470.0,105460.0,0.22210114]
[1750227957394,5.20831774,105470.0,105460.0,0.23096689]
[1750227957912,5.20831774,105470.0,105460.0,0.23096472]
[1750227960621,5.20831774,105470.0,105460.0,0.42061008]
[1750227960854,5.20831774,105470.0,105460.0,0.42122867]
[1750227961079,5.19883638,105470.0,105460.0,0.23096349]
[1750227961530,5.19883638,105470.0,105460.0,0.2307968]
[1750227962206,5.19883638,105470.0,105460.0,0.22131454]
[1750227962493,5.19883638,105470.0,105460.0,0.2213137]
[1750227962725,5.22713638,105470.0,105460.0,0.2213137]
[1750227962943,5.22713638,105470.0,105460.0,0.05674454]
[1750227963147,5.22713638,105470.0,105460.0,0.04725538]
[1750227963569,5.22713638,105470.0,105460.0,0.03776622]
[1750227963989,5.22713638,105470.0,105460.0,0.02827706]
[1750227964208,5.19883638,105470.0,105460.0,0.02827847]
[1750227964418,5.19883638,105470.0,105460.0,0.01878931]
[1750227964673,5.19883638,105470.0,105460.0,0.01772535]
[1750227965849,5.22743638,105470.0,105460.0,0.01772535]
[1750227966262,5.19883638,105470.0,105460.0,0.01772535]
[1750227967571,5.2949856,105470.0,105460.0,0.01772535]
[1750227967752,5.19883638,105470.0,105460.0,0.01772535]
[1750227968828,5.22573638,105470.0,105460.0,0.00823562]
[1750227970306,0.54860961,105460.0,105450.0,0.25446033]
[1750227970564,5.21581861,105460.0,105450.0,0.4497865]
[1750227971235,5.21581861,105460.0,105450.0,0.0554]
[1750227971485,5.21581861,105460.0,105450.0,0.22322]
[1750227971710,5.21581861,105460.0,105450.0,0.04224]
[1750227972634,5.21581861,105460.0,105450.0,0.04324]
[1750227972860,5.21581861,105460.0,105450.0,0.04124]
[1750227973082,5.007209,105460.0,105450.0,0.25584632]
[1750227973299,5.24426359,105460.0,105450.0,0.27481174]
[1750227973521,5.27362796,105460.0,105450.0,0.47005174]
[1750227973746,5.0839826,105460.0,105450.0,0.47953427]
[1750227973963,5.07450034,105460.0,105450.0,0.47953427]
[1750227975962,5.2641457,105460.0,105450.0,0.26532912]
[1750227976161,5.25466398,105460.0,105450.0,0.45108632]
[1750227976368,5.25466398,105460.0,105450.0,0.46056921]
[1750227977866,5.25466398,105460.0,105450.0,0.47005192]
[1750227978327,5.25466398,105460.0,105450.0,0.27481192]
[1750227978543,0.53914596,105450.0,105440.0,0.51113138]
[1750227978767,5.0261746,105450.0,105440.0,0.78160926]
[1750227978983,5.03565749,105450.0,105440.0,0.78160926]
[1750227979424,5.02617406,105450.0,105440.0,0.78160926]
[1750227979633,5.03565695,105450.0,105440.0,0.78160926]
[1750227979845,4.86873823,105450.0,105440.0,0.78260926]
[1750227980288,4.87822076,105450.0,105440.0,0.78260926]
[1750227980730,4.88870374,105450.0,105440.0,0.78556926]
[1750227980946,4.88870374,105450.0,105440.0,0.78557027]
[1750227981673,4.92003575,105450.0,105440.0,0.78557027]
[1750227982290,4.92003575,105450.0,105440.0,0.80333894]
[1750227982728,4.92003575,105450.0,105440.0,0.35735894]
[1750227982965,4.92003575,105450.0,105440.0,0.51219894]
[1750227983636,4.92003575,105450.0,105440.0,0.49443027]
[1750227983848,4.92003575,105450.0,105440.0,0.51219664]
[1750227984211,4.92003647,105450.0,105440.0,0.51219664]
[1750227984413,4.92003647,105450.0,105440.0,0.50271321]
[1750227984615,4.91055385,105450.0,105440.0,0.50271321]
[1750227985021,5.10021719,105450.0,105440.0,0.49322969]
[1750227985217,5.09073439,105450.0,105440.0,0.50271339]
[1750227985463,5.09073439,105450.0,105440.0,0.2987493]
[1750227985713,5.09073439,105450.0,105440.0,0.4937893]
[1750227986450,5.09073439,105450.0,105440.0,0.50327291]
[1750227986643,5.09073439,105450.0,105440.0,0.29874838]
[1750227986768,5.09073439,105450.0,105440.0,0.49374838]
[1750227986997,5.09073439,105450.0,105440.0,0.50323199]
[1750227987346,5.09073439,105450.0,105440.0,0.48546654]
[1750227988695,5.09073439,105450.0,105440.0,0.47598293]
[1750227988872,5.09073439,105450.0,105440.0,0.47594293]
[1750227989308,5.08125141,105450.0,105440.0,0.47594293]
[1750227989507,5.08125141,105450.0,105440.0,0.46645923]
[1750227989659,5.07176834,105450.0,105440.0,0.46645923]
[1750227990880,5.07176834,105450.0,105440.0,0.27149923]
[1750227991079,5.07176834,105450.0,105440.0,0.31173923]
[1750227991294,5.06228518,105450.0,105440.0,0.45693544]
[1750227991500,5.06228518,105450.0,105440.0,0.46641941]
[1750227991918,5.06228518,105450.0,105440.0,0.47590329]
[1750227992676,5.06228518,105450.0,105440.0,0.25782]
[1750227992934,5.0849486,105450.0,105440.0,0.25782]
[1750227993141,5.0849486,105450.0,105440.0,0.10314]
[1750227993362,5.0849486,105450.0,105440.0,0.22924]
[1750227993574,5.0849486,105450.0,105440.0,0.0344]
[1750227993786,5.0849486,105450.0,105440.0,0.19884]
[1750227994194,5.0849486,105450.0,105440.0,0.22724]
[1750227994479,5.0849486,105450.0,105440.0,0.07264]
[1750227994700,5.0849486,105450.0,105440.0,0.22624]
[1750227994919,5.0849486,105450.0,105440.0,0.19784]
[1750227995556,5.0859486,105450.0,105440.0,0.1948]
[1750227995786,4.86637439,105440.0,105430.0,0.24717986]
[1750227996017,5.20637439,105440.0,105430.0,0.45146464]
[1750227996238,5.20637439,105440.0,105430.0,0.26614933]
[1750227996463,5.20637439,105440.0,105430.0,0.46094933]
[1750227997775,5.20637439,105440.0,105430.0,0.25666464]
[1750227997981,5.20637439,105440.0,105430.0,0.46062924]
[1750227998192,5.21585818,105440.0,105430.0,0.46062924]
[1750227998418,5.21585818,105440.0,105430.0,0.47011375]
[1750227998626,5.22534179,105440.0,105430.0,0.47111375]
[1750227998834,5.03566046,105440.0,105430.0,0.4900825]
[1750227999042,5.0261764,105440.0,105430.0,0.4900825]
[1750227999257,5.04514425,105440.0,105430.0,0.4900825]
[1750227999465,5.04514425,105440.0,105430.0,0.4900425]
[1750228001084,5.04514425,105440.0,105430.0,0.2956025]
[1750228001293,5.03566028,105440.0,105430.0,0.4900425]
[1750228001504,5.03566028,105440.0,105430.0,0.50781439]
[1750228001919,5.04514425,105440.0,105430.0,0.50781439]
[1750228003126,5.04514425,105440.0,105430.0,0.31337439]
[1750228003353,5.04514425,105440.0,105430.0,0.50777439]
[1750228003575,5.23482603,105440.0,105430.0,0.46979519]
[1750228003775,5.23482603,105440.0,105430.0,0.47927979]
[1750228004069,5.23482603,105440.0,105430.0,0.47927937]
[1750228005306,5.23482603,105440.0,105430.0,0.28491937]
[1750228005511,5.23482603,105440.0,105430.0,0.31535477]
[1750228005726,5.23482603,105440.0,105430.0,0.47923937]
[1750228006354,5.23482603,105440.0,105430.0,0.4887269]
[1750228007896,5.23482603,105440.0,105430.0,0.47924239]
[1750228008318,5.22534224,105440.0,105430.0,0.47924239]
[1750228009180,5.22534224,105440.0,105430.0,0.4887269]
[1750228009410,5.22534224,105440.0,105430.0,0.47924239]
[1750228009821,5.22534224,105440.0,105430.0,0.47916239]
[1750228010030,5.22534224,105440.0,105430.0,0.48864681]
[1750228010242,5.22534224,105440.0,105430.0,0.4886469]
[1750228010422,5.22534224,105440.0,105430.0,0.46967779]
[1750228010689,5.22534224,105440.0,105430.0,0.47916239]
[1750228010904,5.22534224,105440.0,105430.0,0.4886469]
[1750228011435,5.22534224,105440.0,105430.0,0.49813132]
[1750228011645,5.22534224,105440.0,105430.0,0.2944069]
[1750228011857,5.22534224,105440.0,105430.0,0.4886469]
[1750228012278,5.22534224,105440.0,105430.0,0.2944069]
[1750228012496,5.22534224,105440.0,105430.0,0.4886469]
[1750228013756,5.22534224,105440.0,105430.0,0.46967779]
[1750228014273,5.22534224,105440.0,105430.0,0.27543779]
[1750228014485,5.22534224,105440.0,105430.0,0.46967779]
[1750228014701,5.22534224,105440.0,105430.0,0.45190464]
[1750228014935,5.22534224,105440.0,105430.0,0.46968497]
[1750228015160,5.22534224,105440.0,105430.0,0.47916975]
[1750228015358,5.22534224,105440.0,105430.0,0.46968497]
[1750228015541,5.22534224,105440.0,105430.0,0.42146951]
[1750228015882,5.22534224,105440.0,105430.0,0.45194473]
[1750228015977,5.22534224,105440.0,105430.0,0.47091402]
[1750228016201,5.22534224,105440.0,105430.0,0.46142942]
[1750228017150,5.22534224,105440.0,105430.0,0.46142951]
[1750228017337,5.22534224,105440.0,105430.0,0.45194473]
[1750228017537,5.22534224,105440.0,105430.0,0.46142951]
[1750228017950,5.22534224,105440.0,105430.0,0.45194473]
[1750228018149,5.22534224,105440.0,105430.0,0.46142951]
[1750228018761,5.22534224,105440.0,105430.0,0.45194482]
[1750228018985,5.22534224,105440.0,105430.0,0.26232496]
[1750228019200,5.22534224,105440.0,105430.0,0.27180983]
[1750228019403,5.22534224,105440.0,105430.0,0.26232496]
[1750228019635,5.22534224,105440.0,105430.0,0.27180983]
[1750228020257,5.22534224,105440.0,105430.0,0.26232496]
[1750228020465,5.22534224,105440.0,105430.0,0.27180983]
[1750228020873,5.22534224,105440.0,105430.0,0.26232496]
[1750228021302,5.22534224,105440.0,105430.0,0.26224496]
[1750228021897,5.22534224,105440.0,105430.0,0.27172983]
[1750228022138,5.22534224,105440.0,105430.0,0.28121461]
[1750228022330,5.22534224,105440.0,105430.0,0.27172983]
[1750228022538,5.24802671,105440.0,105430.0,0.26224496]
[1750228022755,5.23854283,105440.0,105430.0,0.25276]
[1750228022963,5.23854283,105440.0,105430.0,0.27172983]
[1750228023175,5.23854283,105440.0,105430.0,0.26224496]
[1750228023478,5.23854283,105440.0,105430.0,0.27172983]
[1750228023827,5.23854283,105440.0,105430.0,0.26224496]
[1750228024033,5.23854283,105440.0,105430.0,0.0586]
[1750228024247,5.23854283,105440.0,105430.0,0.25276]
[1750228024447,5.23854283,105440.0,105430.0,0.45194428]
[1750228024659,5.23854283,105440.0,105430.0,0.47091339]
[1750228026488,5.04886114,105440.0,105430.0,0.48039772]
[1750228031101,5.05834439,105440.0,105430.0,0.48039772]
[1750228031307,5.06782827,105440.0,105430.0,0.48039772]
[1750228031513,5.07731224,105440.0,105430.0,0.48039772]
[1750228033481,5.07731224,105440.0,105430.0,0.28623772]
[1750228033689,5.07731224,105440.0,105430.0,0.48011772]
[1750228035307,5.07731287,105440.0,105430.0,0.48011772]
[1750228035857,5.06782881,105440.0,105430.0,0.48011772]
[1750228040218,5.2669942,105440.0,105430.0,0.47063339]
[1750228040426,5.2575105,105440.0,105430.0,0.47063339]
[1750228043734,5.25704833,105440.0,105430.0,0.47063339]
[1750228044913,5.067367,105440.0,105430.0,0.47063339]
[1750228045082,5.067367,105440.0,105430.0,0.48011772]
[1750228045288,5.05788294,105440.0,105430.0,0.48011772]
[1750228045758,5.067367,105440.0,105430.0,0.28623772]
[1750228045963,5.067367,105440.0,105430.0,0.48007772]
[1750228046226,5.04839897,105440.0,105430.0,0.48007772]
[1750228046429,5.05788294,105440.0,105430.0,0.48007772]
[1750228047772,5.03519721,105440.0,105430.0,0.48007772]
[1750228047983,5.01623008,105440.0,105430.0,0.48007772]
[1750228048200,5.0257136,105440.0,105430.0,0.48007772]
[1750228048839,5.0351973,105440.0,105430.0,0.48007772]
[1750228049042,5.03519721,105440.0,105430.0,0.48007772]
[1750228050211,5.00674683,105440.0,105430.0,0.49461857]
[1750228050431,5.00674683,105440.0,105430.0,0.59086033]
[1750228050636,5.00674683,105440.0,105430.0,0.88196033]
[1750228051457,0.34,105440.0,105430.0,0.88196033]
[1750228052706,4.68859494,105450.0,105440.0,0.29307328]
[1750228052913,5.03807738,105450.0,105440.0,0.47237243]
[1750228053121,5.02859494,105450.0,105440.0,0.47237243]
[1750228054629,0.02384894,105450.0,105440.0,0.98415504]
[1750228054864,0.002,105450.0,105440.0,0.98415504]
[1750228055306,0.002,105450.0,105440.0,1.19790108]
[1750228055516,0.004,105450.0,105440.0,0.98415504]
[1750228055965,0.00014221,105470.0,105460.0,0.46809106]
[1750228056198,0.00014221,105470.0,105460.0,0.81679282]
[1750228057724,0.00114221,105470.0,105460.0,0.81979282]
[1750228057938,0.00114221,105470.0,105460.0,0.82079282]
[1750228061734,0.00114221,105470.0,105460.0,0.56833282]
[1750228061949,5.00788821,105470.0,105460.0,0.31833282]
[1750228062170,5.00788821,105470.0,105460.0,0.37629106]
[1750228062834,5.02684994,105470.0,105460.0,0.37629106]
[1750228063051,5.02684985,105470.0,105460.0,0.37629106]
[1750228063258,5.02684985,105470.0,105460.0,0.41609106]
[1750228064105,5.03633103,105470.0,105460.0,0.41609106]
[1750228064723,5.03633103,105470.0,105460.0,0.40660943]
[1750228064942,5.21647768,105470.0,105460.0,0.04372]
[1750228065195,5.27607768,105470.0,105460.0,0.04372]
[1750228065413,5.27607768,105470.0,105460.0,0.19796]
[1750228065634,5.27607768,105470.0,105460.0,0.004]
[1750228065851,5.27607768,105470.0,105460.0,0.19816]
[1750228067580,5.27607768,105470.0,105460.0,0.19812]
[1750228068442,5.27507768,105470.0,105460.0,0.19412]
[1750228068649,5.30556968,105470.0,105460.0,0.19412]
[1750228068858,5.30856968,105470.0,105460.0,0.19512]
[1750228070169,5.30856968,105470.0,105460.0,0.001]
[1750228071257,5.33116108,105470.0,105460.0,0.001]
[1750228075761,0.00948199,105460.0,105440.0,0.58935572]
[1750228075969,4.88485765,105450.0,105440.0,0.83279143]
[1750228076168,4.70467729,105450.0,105440.0,0.88085892]
[1750228076882,4.69519413,105450.0,105440.0,0.88085892]
[1750228077297,4.69519404,105450.0,105440.0,0.88085892]
[1750228077817,4.70467702,105450.0,105440.0,0.88185892]
[1750228077987,4.70467702,105450.0,105440.0,0.88085892]
[1750228078228,4.70467702,105450.0,105440.0,0.88185892]
[1750228078430,4.69619404,105450.0,105440.0,0.88485892]
[1750228078633,4.69619404,105450.0,105440.0,0.8870256]
[1750228079050,4.70567702,105450.0,105440.0,0.8870256]
[1750228079681,4.69619404,105450.0,105440.0,0.8870256]
[1750228080601,4.68671115,105450.0,105440.0,0.8870256]
[1750228080806,4.69619404,105450.0,105440.0,0.8870256]
[1750228081477,4.68671115,105450.0,105440.0,0.8870256]